fUST/lending_fUST_20250707
["ID","MTS","AMOUNT","RATE_DAILY","PERIOD"]
[370035494,1751854249644,-160.0,0.00019987,2]
[370035495,1751854249654,-230.45878613,0.00019987,2]
[370035496,1751854249663,-160.0,0.00019987,2]
[370035497,1751854249672,-215.18120504,0.00019987,2]
[370035498,1751854249681,-160.0,0.00019987,2]
[370035499,1751854249690,-160.0,0.00019987,2]
[370035500,1751854249699,-460.0,0.00019988,2]
[370035501,1751854249709,-460.0,0.00019988,2]
[370035502,1751854249719,-460.0,0.00019988,2]
[370035503,1751854249728,-460.0,0.00019988,2]
[370035504,1751854249738,-460.0,0.00019988,2]
[370035505,1751854249749,-460.0,0.00019988,2]
[370035506,1751854249759,-460.0,0.00019988,2]
[370035507,1751854249769,-460.0,0.00019988,2]
[370035508,1751854249779,-236.4749129,0.00019988,2]
[370035509,1751854249789,-460.0,0.00019988,2]
[370035510,1751854249798,-460.0,0.00019988,2]
[370035511,1751854249808,-723.06,0.00020093,2]
[370035512,1751854249817,-583.48,0.00020093,2]
[370035513,1751854249826,-726.04,0.00020095,2]
[370035514,1751854249835,-520.46,0.00020095,2]
[370035515,1751854249844,-751.74,0.00020095,2]
[370035516,1751854249853,-989.66,0.00020095,2]
[370035517,1751854249862,-462.52,0.00020095,2]
[370035518,1751854249871,-553.78,0.00020095,2]
[370035519,1751854249881,-460.0,0.00020095,2]
[370035520,1751854249890,-202.575897,0.00020187,2]
[370035521,1751854249899,-172.046631,0.00020221,2]
[370035522,1751854249908,-622.79991563,0.00020221,2]
[370035523,1751854249917,-460.0,0.0002026,2]
[370035524,1751854249926,-968.6,0.0002026,2]
[370035525,1751854249935,-460.0,0.0002026,2]
[370035526,1751854249945,-460.0,0.0002026,2]
[370035527,1751854249953,-460.0,0.0002026,2]
[370035528,1751854249963,-460.0,0.0002026,2]
[370035529,1751854249972,-460.0,0.00020261,2]
[370035530,1751854249981,-1570.74,0.00020261,2]
[370035531,1751854249990,-460.0,0.00020261,2]
[370035532,1751854249999,-796.1,0.00020261,2]
[370035533,1751854250009,-460.0,0.00020262,2]
[370035534,1751854250018,-461.55279061,0.00020262,2]
[370035535,1751854250027,-461.05038008,0.00020262,2]
[370035536,1751854250036,-463.58979861,0.00020262,2]
[370035537,1751854250046,-460.0,0.00020262,2]
[370035538,1751854250055,-461.31001904,0.00020262,2]
[370035539,1751854250064,-460.0,0.00020262,2]
[370035540,1751854250073,-430.89191656,0.00020262,2]
[370035541,1751854250082,-460.0,0.00020262,2]
[370035542,1751854250091,-460.0,0.00020262,2]
[370035543,1751854250100,-460.0,0.00020262,2]
[370035544,1751854250110,-460.0,0.00020262,2]
[370035545,1751854250119,-491.87091373,0.00020262,2]
[370035546,1751854250129,-460.0,0.00020262,2]
[370035547,1751854250138,-460.0,0.00020262,2]
[370035548,1751854250147,-472.46884871,0.00020262,2]
[370035549,1751854250156,-918.24,0.00020262,2]
[370035550,1751854250166,-460.0,0.00020262,2]
[370035551,1751854250175,-460.0,0.00020262,2]
[370035552,1751854250184,-460.0,0.00020262,2]
[370035553,1751854250193,-463.76395587,0.00020262,2]
[370035554,1751854250203,-461.70807778,0.00020262,2]
[370035555,1751854250214,-460.0,0.00020262,2]
[370035556,1751854250227,-555.41,0.00020262,2]
[370035557,1751854250236,-603.20507363,0.00020262,2]
[370035558,1751854250245,-460.0,0.00020262,2]
[370035559,1751854250255,-460.0,0.00020262,2]
[370035560,1751854250265,-460.0,0.00020262,2]
[370035561,1751854250275,-723.06,0.00020367,2]
[370035562,1751854250284,-583.48,0.00020367,2]
[370035563,1751854250294,-726.04,0.00020369,2]
[370035564,1751854250304,-520.46,0.00020369,2]
[370035565,1751854250313,-751.74,0.00020369,2]
[370035566,1751854250323,-989.66,0.00020369,2]
[370035567,1751854250332,-462.52,0.00020369,2]
[370035568,1751854250342,-553.78,0.00020369,2]
[370035569,1751854250352,-460.0,0.00020369,2]
[370035570,1751854250361,-154.44747601,0.00020444,2]
[370035571,1751854250370,-460.0,0.00020534,2]
[370035572,1751854250379,-968.6,0.00020534,2]
[370035573,1751854250389,-460.0,0.00020534,2]
[370035574,1751854250398,-460.0,0.00020534,2]
[370035575,1751854250407,-460.0,0.00020534,2]
[370035576,1751854250417,-460.0,0.00020534,2]
[370035577,1751854250426,-1570.74,0.00020535,2]
[370035578,1751854250435,-460.0,0.00020535,2]
[370035579,1751854250445,-796.1,0.00020535,2]
[370035580,1751854250454,-463.37964371,0.00020536,2]
[370035581,1751854250463,-211.6603477,0.00020536,2]
[370035582,1751854250472,-460.0,0.00020536,2]
[370035583,1751854250481,-460.0,0.00020536,2]
[370035584,1751854250490,-478.17402919,0.00020536,2]
[370035585,1751854250501,-598.74361773,0.00020536,2]
[370035586,1751854250510,-410.20742602,0.00020536,2]
[370035587,1751854250519,-460.0,0.00020536,2]
[370035588,1751854250528,-918.24,0.00020536,2]
[370035589,1751854250538,-460.0,0.00020536,2]
[370035590,1751854250547,-460.0,0.00020536,2]
[370035591,1751854250556,-460.0,0.00020536,2]
[370035592,1751854250565,-460.0,0.00020536,2]
[370035593,1751854250574,-555.41,0.00020536,2]
[370035594,1751854250584,-460.0,0.00020536,2]
[370035595,1751854250694,-460.0,0.00020536,2]
[370035596,1751854250704,-460.0,0.00020536,2]
[370035597,1751854250714,-466.64203505,0.00020544,2]
[370035598,1751854250724,-460.0,0.00020544,2]
[370035599,1751854250733,-460.0,0.00020544,2]
[370035600,1751854250743,-460.0,0.00020544,2]
[370035601,1751854250755,-460.0,0.00020544,2]
[370035602,1751854250765,-468.51258335,0.00020544,2]
[370035603,1751854250776,-548.35259827,0.00020544,2]
[370035604,1751854250786,-460.0,0.00020544,2]
[370035605,1751854250795,-461.34689603,0.00020544,2]
[370035606,1751854250806,-463.02483616,0.00020544,2]
[370035607,1751854250817,-465.50708477,0.00020544,2]
[370035608,1751854250829,-464.7132589,0.00020544,2]
[370035609,1751854250839,-460.0,0.00020544,2]
[370035610,1751854250849,-460.0,0.00020544,2]
[370035611,1751854250860,-461.42513913,0.00020544,2]
[370035612,1751854250870,-460.0,0.00020544,2]
[370035613,1751854250879,-461.84389489,0.00020544,2]
[370035614,1751854250889,-460.0,0.00020544,2]
[370035615,1751854250898,-353.63911291,0.00020544,2]
[370035616,1751854250907,-462.64575202,0.00020544,2]
[370035617,1751854250917,-461.90533442,0.00020544,2]
[370035618,1751854250927,-568.79252285,0.00020544,2]
[370035619,1751854250936,-461.74816754,0.00020544,2]
[370035620,1751854250945,-502.60480487,0.00020544,2]
[370035621,1751854250954,-538.62312833,0.00020544,2]
[370035622,1751854250963,-460.0,0.00020544,2]
[370035623,1751854250972,-460.0,0.00020544,2]
[370035624,1751854250981,-460.0,0.00020544,2]
[370035625,1751854250991,-390.65,0.00020544,2]
[370035626,1751854251003,-464.79158474,0.00020544,2]
[370035627,1751854251013,-460.0,0.00020544,2]
[370035628,1751854251022,-730.2,0.000206,2]
[370035629,1751854251032,-1451.54756479,0.00020618,2]
[370035630,1751854251042,-723.06,0.00020641,2]
[370035631,1751854251051,-583.48,0.00020641,2]
[370035632,1751854251060,-150.0,0.00020643,2]
[370035633,1751854251070,-726.04,0.00020643,2]
[370035634,1751854251079,-520.46,0.00020643,2]
[370035635,1751854251089,-751.74,0.00020643,2]
[370035636,1751854251098,-989.66,0.00020643,2]
[370035637,1751854251108,-462.52,0.00020643,2]
[370035638,1751854251117,-553.78,0.00020643,2]
[370035639,1751854251127,-460.0,0.00020643,2]
[370035640,1751854251136,-1882.26703439,0.00020716,2]
[370035641,1751854251145,-429.554,0.00020797,2]
[370035642,1751854251155,-1000.0,0.000208,7]
[370035643,1751854251164,-460.0,0.00020808,2]
[370035644,1751854251173,-968.6,0.00020808,2]
[370035645,1751854251182,-460.0,0.00020808,2]
[370035646,1751854251192,-460.0,0.00020808,2]
[370035647,1751854251201,-460.0,0.00020808,2]
[370035648,1751854251211,-460.0,0.00020808,2]
[370035649,1751854251226,-1570.74,0.00020809,2]
[370035650,1751854251235,-460.0,0.00020809,2]
[370035651,1751854251246,-796.1,0.00020809,2]
[370035652,1751854251255,-460.0,0.0002081,2]
[370035653,1751854251265,-460.0,0.0002081,2]
[370035654,1751854251274,-460.0,0.0002081,2]
[370035655,1751854251284,-918.24,0.0002081,2]
[370035656,1751854251294,-506.20496522,0.0002081,2]
[370035657,1751854251303,-460.0,0.0002081,2]
[370035658,1751854251312,-460.0,0.0002081,2]
[370035659,1751854251321,-460.0,0.0002081,2]
[370035660,1751854251330,-555.41,0.0002081,2]
[370035661,1751854251339,-460.0,0.0002081,2]
[370035662,1751854251348,-460.0,0.0002081,2]
[370035663,1751854251357,-460.0,0.0002081,2]
[370035664,1751854251366,-461.98474876,0.00020818,2]
[370035665,1751854251375,-467.34921689,0.00020818,2]
[370035666,1751854251385,-460.0,0.00020818,2]
[370035667,1751854251395,-460.0,0.00020818,2]
[370035668,1751854251404,-332.65710527,0.00020818,2]
[370035669,1751854251413,-460.0,0.00020818,2]
[370035670,1751854251422,-460.0,0.00020818,2]
[370035671,1751854251431,-460.0,0.00020818,2]
[370035672,1751854251441,-339.77782862,0.00020818,2]
[370035673,1751854251450,-460.0,0.00020818,2]
[370035674,1751854251460,-460.0,0.00020818,2]
[370035675,1751854251469,-481.85637382,0.00020818,2]
[370035676,1751854251478,-420.0,0.00020884,2]
[370035677,1751854251487,-164.369555,0.00020894,2]
[370035678,1751854251497,-723.06,0.00020915,2]
[370035679,1751854251506,-583.48,0.00020915,2]
[370035680,1751854251516,-726.04,0.00020917,2]
[370035681,1751854251525,-520.46,0.00020917,2]
[370035682,1751854251534,-751.74,0.00020917,2]
[370035683,1751854251544,-989.66,0.00020917,2]
[370035684,1751854251553,-462.52,0.00020917,2]
[370035685,1751854251563,-553.78,0.00020917,2]
[370035686,1751854251572,-460.0,0.00020917,2]
[370035687,1751854251582,-150.0,0.00021,2]
[370035688,1751854251592,-460.0,0.00021082,2]
[370035689,1751854251601,-968.6,0.00021082,2]
[370035690,1751854251611,-460.0,0.00021082,2]
[370035691,1751854251621,-460.0,0.00021082,2]
[370035692,1751854251630,-460.0,0.00021082,2]
[370035693,1751854251640,-268.92638648,0.00021082,2]
[370035694,1751854251649,-1570.74,0.00021083,2]
[370035695,1751854251658,-460.0,0.00021083,2]
[370035696,1751854251668,-796.1,0.00021083,2]
[370035697,1751854251677,-498.97987205,0.00021084,2]
[370035698,1751854251686,-392.29161597,0.00021084,2]
[370035699,1751854251696,-460.0,0.00021084,2]
[370035700,1751854251705,-918.24,0.00021084,2]
[370035701,1751854251715,-460.0,0.00021084,2]
[370035702,1751854251724,-460.0,0.00021084,2]
[370035703,1751854251733,-460.0,0.00021084,2]
[370035704,1751854251743,-555.41,0.00021084,2]
[370035705,1751854251754,-460.0,0.00021084,2]
[370035706,1751854251763,-460.0,0.00021084,2]
[370035707,1751854251772,-460.0,0.00021084,2]
[370035708,1751854251782,-460.0,0.00021092,2]
[370035709,1751854251792,-460.0,0.00021092,2]
[370035710,1751854251801,-460.0,0.00021092,2]
[370035711,1751854251811,-460.0,0.00021092,2]
[370035712,1751854251820,-460.0,0.00021092,2]
[370035713,1751854251829,-164.369555,0.00021121,2]
[370035714,1751854251839,-723.06,0.00021189,2]
[370035715,1751854251848,-583.48,0.00021189,2]
[370035716,1751854251857,-726.04,0.00021191,2]
[370035717,1751854251866,-520.46,0.00021191,2]
[370035718,1751854251875,-751.74,0.00021191,2]
[370035719,1751854251884,-989.66,0.00021191,2]
[370035720,1751854251893,-462.52,0.00021191,2]
[370035721,1751854251902,-553.78,0.00021191,2]
[370035722,1751854251911,-460.0,0.00021191,2]
[370035723,1751854251920,-1451.54756479,0.00021259,2]
[370035724,1751854251929,-164.369555,0.00021348,2]
[370035725,1751854251938,-594.18635321,0.00021356,2]
[370035726,1751854251947,-968.6,0.00021356,2]
[370035727,1751854251956,-460.0,0.00021356,2]
[370035728,1751854251965,-460.0,0.00021356,2]
[370035729,1751854251974,-460.0,0.00021356,2]
[370035730,1751854251984,-1570.74,0.00021357,2]
[370035731,1751854251992,-460.0,0.00021357,2]
[370035732,1751854252003,-796.1,0.00021357,2]
[370035733,1751854252012,-460.0,0.00021358,2]
[370035734,1751854252021,-918.24,0.00021358,2]
[370035735,1751854252030,-460.0,0.00021358,2]
[370035736,1751854252039,-460.0,0.00021358,2]
[370035737,1751854252050,-460.0,0.00021358,2]
[370035738,1751854252060,-555.41,0.00021358,2]
[370035739,1751854252070,-460.0,0.00021358,2]
[370035740,1751854252079,-460.0,0.00021358,2]
[370035741,1751854252089,-460.0,0.00021366,2]
[370035742,1751854252098,-460.0,0.00021366,2]
[370035743,1751854252107,-460.0,0.00021366,2]
[370035744,1751854252116,-460.0,0.00021366,2]
[370035745,1751854252126,-460.0,0.00021366,2]
[370035746,1751854252135,-723.06,0.00021463,2]
[370035747,1751854252144,-583.48,0.00021463,2]
[370035748,1751854252153,-726.04,0.00021465,2]
[370035749,1751854252163,-520.46,0.00021465,2]
[370035750,1751854252172,-751.74,0.00021465,2]
[370035751,1751854252181,-989.66,0.00021465,2]
[370035752,1751854252191,-462.52,0.00021465,2]
[370035753,1751854252200,-553.78,0.00021465,2]
[370035754,1751854252210,-460.0,0.00021465,2]
[370035755,1751854252221,-210.07759676,0.00021568,2]
[370035756,1751854252230,-164.369555,0.00021575,2]
[370035757,1751854252239,-151.0,0.000216,4]
[370035758,1751854252249,-968.6,0.0002163,2]
[370035759,1751854252258,-460.0,0.0002163,2]
[370035760,1751854252267,-424.92332081,0.0002163,2]
[370035761,1751854252277,-460.0,0.0002163,2]
[370035762,1751854252286,-1570.74,0.00021631,2]
[370035763,1751854252297,-460.0,0.00021631,2]
[370035764,1751854252306,-796.1,0.00021631,2]
[370035765,1751854252315,-256.45622366,0.00021632,2]
[370035766,1751854252324,-918.24,0.00021632,2]
[370035767,1751854252333,-460.0,0.00021632,2]
[370035768,1751854252342,-460.0,0.00021632,2]
[370035769,1751854252352,-460.0,0.00021632,2]
[370035770,1751854252360,-555.41,0.00021632,2]
[370035771,1751854252371,-460.0,0.00021632,2]
[370035772,1751854252380,-460.0,0.00021632,2]
[370035773,1751854252390,-460.0,0.0002164,2]
[370035774,1751854252400,-514.75697613,0.0002164,2]
[370035775,1751854252410,-460.0,0.0002164,2]
[370035776,1751854252419,-460.0,0.0002164,2]
[370035777,1751854252428,-460.0,0.0002164,2]
[370035778,1751854252438,-154.44747601,0.00021653,2]
[370035779,1751854252447,-723.06,0.00021737,2]
[370035780,1751854252457,-583.48,0.00021737,2]
[370035781,1751854252466,-726.04,0.00021739,2]
[370035782,1751854252476,-520.46,0.00021739,2]
[370035783,1751854252485,-751.74,0.00021739,2]
[370035784,1751854252495,-989.66,0.00021739,2]
[370035785,1751854252504,-462.52,0.00021739,2]
[370035786,1751854252514,-553.78,0.00021739,2]
[370035787,1751854252523,-460.0,0.00021739,2]
[370035788,1751854252532,-421.26,0.000218,10]
[370035789,1751854252541,-164.369555,0.00021802,2]
[370035790,1751854252637,-886.6489063,0.00021878,2]
[370035791,1751854252648,-1451.54756479,0.000219,2]
[370035792,1751854252658,-169.51761584,0.000219,2]
[370035793,1751854252667,-968.6,0.00021904,2]
[370035794,1751854252676,-460.0,0.00021904,2]
[370035795,1751854252686,-460.0,0.00021904,2]
[370035796,1751854252695,-1570.74,0.00021905,2]
[370035797,1751854252704,-460.0,0.00021905,2]
[370035798,1751854252716,-796.1,0.00021905,2]
[370035799,1751854252726,-918.24,0.00021906,2]
[370035800,1751854252735,-460.0,0.00021906,2]
[370035801,1751854252745,-460.0,0.00021906,2]
[370035802,1751854252755,-460.0,0.00021906,2]
[370035803,1751854252765,-555.41,0.00021906,2]
[370035804,1751854252774,-460.0,0.00021906,2]
[370035805,1751854252783,-460.0,0.00021906,2]
[370035806,1751854252792,-460.0,0.00021914,2]
[370035807,1751854252802,-460.0,0.00021914,2]
[370035808,1751854252812,-460.0,0.00021914,2]
[370035809,1751854252821,-500.0,0.00021917,2]
[370035810,1751854252830,-500.0,0.00021917,2]
[370035811,1751854252840,-500.0,0.00021917,2]
[370035812,1751854252849,-500.0,0.00021917,2]
[370035813,1751854252859,-500.0,0.00021917,2]
[370035814,1751854252868,-500.0,0.00021917,2]
[370035815,1751854252878,-150.0,0.00021918,2]
[370035816,1751854252887,-200.0,0.00021918,2]
[370035817,1751854252896,-500.0,0.00021918,2]
[370035818,1751854252906,-500.0,0.00021918,2]
[370035819,1751854252915,-299.90218177,0.00021918,2]
[370035820,1751854252924,-4073.83336167,0.00021958,2]
[370035821,1751854252933,-503.38998845,0.00021973,2]
[370035822,1751854252942,-500.0,0.00021973,2]
[370035823,1751854252952,-160.2217902,0.00021973,2]
[370035824,1751854252961,-506.39401075,0.00021973,2]
[370035825,1751854252970,-258.72925533,0.00021973,2]
[370035826,1751854252979,-407.77750819,0.00021973,2]
[370035827,1751854252989,-500.0,0.00021973,2]
[370035828,1751854252999,-501.0614704,0.00021973,2]
[370035829,1751854253008,-502.94698062,0.00021973,2]
[370035830,1751854253018,-500.62017214,0.00021973,2]
[370035831,1751854253028,-500.0,0.00021973,2]
[370035832,1751854253037,-500.0,0.00021973,2]
[370035833,1751854253047,-617.37973056,0.00021973,2]
[370035834,1751854253056,-500.0,0.00021973,2]
[370035835,1751854253065,-500.0,0.00021973,2]
[370035836,1751854253075,-500.0,0.00021973,2]
[370035837,1751854253084,-500.0,0.00021973,2]
[370035838,1751854253093,-500.0,0.00021973,2]
[370035839,1751854253103,-161.20848038,0.00021973,2]
[370035840,1751854253112,-500.0,0.00021973,2]
[370035841,1751854253122,-500.0,0.00021973,2]
[370035842,1751854253131,-600.0,0.00021973,2]
[370035843,1751854253141,-500.0,0.00021973,2]
[370035844,1751854253150,-501.41591202,0.00021973,2]
[370035845,1751854253159,-73361.25,0.00022,7]
[370035846,1751854253168,-134829.11,0.00022,2]
[370035847,1751854253177,-5370.95,0.00022,7]
[370035848,1751854253187,-848.27993403,0.00022,7]
[370035849,1751854253196,-723.06,0.00022011,2]
[370035850,1751854253205,-583.48,0.00022011,2]
[370035851,1751854253217,-726.04,0.00022013,2]
[370035852,1751854253228,-520.46,0.00022013,2]
[370035853,1751854253238,-751.74,0.00022013,2]
[370035854,1751854253247,-989.66,0.00022013,2]
[370035855,1751854253258,-462.52,0.00022013,2]
[370035856,1751854253267,-553.78,0.00022013,2]
[370035857,1751854253279,-460.0,0.00022013,2]
[370035858,1751854253289,-164.369555,0.00022029,2]
[370035859,1751854253299,-730.2,0.000221,7]
[370035860,1751854253309,-52103.39346271,0.00022123,2]
[370035861,1751854253318,-951.682,0.00022147,2]
[370035862,1751854253328,-646.0,0.00022147,2]
[370035863,1751854253337,-2153.0,0.00022147,2]
[370035864,1751854253346,-968.6,0.00022178,2]
[370035865,1751854253356,-460.0,0.00022178,2]
[370035866,1751854253366,-460.0,0.00022178,2]
[370035867,1751854253375,-1570.74,0.00022179,2]
[370035868,1751854253385,-460.0,0.00022179,2]
[370035869,1751854253394,-796.1,0.00022179,2]
[370035870,1751854253403,-918.24,0.0002218,2]
[370035871,1751854253413,-460.0,0.0002218,2]
[370035872,1751854253422,-460.0,0.0002218,2]
[370035873,1751854253431,-460.0,0.0002218,2]
[370035874,1751854253441,-555.41,0.0002218,2]
[370035875,1751854253450,-460.0,0.0002218,2]
[370035876,1751854253459,-460.0,0.0002218,2]
[370035877,1751854253468,-460.0,0.00022188,2]
[370035878,1751854253477,-500.0,0.00022188,2]
[370035879,1751854253487,-460.0,0.00022188,2]
[370035880,1751854253496,-460.0,0.00022188,2]
[370035881,1751854253506,-164.369555,0.00022256,2]
[370035882,1751854253515,-344.95663519,0.00022274,2]
[370035883,1751854253524,-723.06,0.00022285,2]
[370035884,1751854253534,-583.48,0.00022285,2]
[370035885,1751854253543,-726.04,0.00022287,2]
[370035886,1751854253554,-520.46,0.00022287,2]
[370035887,1751854253565,-751.74,0.00022287,2]
[370035888,1751854253575,-989.66,0.00022287,2]
[370035889,1751854253585,-462.52,0.00022287,2]
[370035890,1751854253595,-553.78,0.00022287,2]
[370035891,1751854253605,-460.0,0.00022287,2]
[370035892,1751854253614,-501.07989023,0.00022358,2]
[370035893,1751854253625,-968.6,0.00022452,2]
[370035894,1751854253635,-460.0,0.00022452,2]
[370035895,1751854253644,-460.0,0.00022452,2]
[370035896,1751854253653,-802.654,0.00022453,2]
[370035897,1751854253662,-2200.0,0.00022453,2]
[370035898,1751854253672,-1570.74,0.00022453,2]
[370035899,1751854253681,-460.0,0.00022453,2]
[370035900,1751854253691,-796.1,0.00022453,2]
[370035901,1751854253700,-918.24,0.00022454,2]
[370035902,1751854253709,-238.25491378,0.00022454,2]
[370035903,1751854253719,-557.16746967,0.00022454,2]
[370035904,1751854253728,-460.0,0.00022454,2]
[370035905,1751854253738,-555.41,0.00022454,2]
[370035906,1751854253747,-460.0,0.00022454,2]
[370035907,1751854253757,-460.0,0.00022454,2]
[370035908,1751854253767,-377.32009654,0.00022462,2]
[370035909,1751854253776,-500.0,0.00022462,2]
[370035910,1751854253785,-460.0,0.00022462,2]
[370035911,1751854253795,-482.05087573,0.00022462,2]
[370035912,1751854253804,-164.369555,0.00022483,2]
[370035913,1751854253814,-500.42383133,0.00022521,2]
[370035914,1751854253823,-503.69021224,0.00022521,2]
[370035915,1751854253833,-501.61453854,0.00022521,2]
[370035916,1751854253844,-502.91263907,0.00022521,2]
[370035917,1751854253853,-503.73528866,0.00022521,2]
[370035918,1751854253863,-1000.41382127,0.00022521,2]
[370035919,1751854253873,-1002.37238666,0.00022521,2]
[370035920,1751854253882,-1000.0,0.00022521,2]
[370035921,1751854253891,-1002.41432564,0.00022521,2]
[370035922,1751854253900,-1001.43177517,0.00022521,2]
[370035923,1751854253909,-501.59288037,0.00022521,2]
[370035924,1751854253919,-1200.0,0.00022521,2]
[370035925,1751854253928,-503.61122177,0.00022521,2]
[370035926,1751854253938,-723.06,0.00022559,2]
[370035927,1751854253947,-583.48,0.00022559,2]
[370035928,1751854253956,-726.04,0.00022561,2]
[370035929,1751854253965,-520.46,0.00022561,2]
[370035930,1751854253974,-751.74,0.00022561,2]
[370035931,1751854253983,-989.66,0.00022561,2]
[370035932,1751854253992,-462.52,0.00022561,2]
[370035933,1751854254001,-553.78,0.00022561,2]
[370035934,1751854254011,-460.0,0.00022561,2]
[370035935,1751854254020,-296.92223,0.00022603,2]
[370035936,1751854254029,-200.33534176,0.00022603,2]
[370035937,1751854254038,-164.369555,0.00022711,2]
[370035938,1751854254048,-968.6,0.00022726,2]
[370035939,1751854254057,-221.87857295,0.00022726,2]
[370035940,1751854254066,-539.61096236,0.00022726,2]
[370035941,1751854254075,-1570.74,0.00022727,2]
[370035942,1751854254085,-460.0,0.00022727,2]
[370035943,1751854254094,-796.1,0.00022727,2]
[370035944,1751854254103,-918.24,0.00022728,2]
[370035945,1751854254112,-460.0,0.00022728,2]
[370035946,1751854254121,-555.41,0.00022728,2]
[370035947,1751854254131,-366.24227869,0.00022728,2]
[370035948,1751854254142,-460.0,0.00022728,2]
[370035949,1751854254153,-531.5159971,0.00022736,2]
[370035950,1751854254164,-460.0,0.00022736,2]
[370035951,1751854254174,-587.0,0.0002276,2]
[370035952,1751854254184,-723.06,0.00022833,2]
[370035953,1751854254195,-583.48,0.00022833,2]
[370035954,1751854254204,-726.04,0.00022835,2]
[370035955,1751854254216,-520.46,0.00022835,2]
[370035956,1751854254225,-751.74,0.00022835,2]
[370035957,1751854254235,-989.66,0.00022835,2]
[370035958,1751854254244,-462.52,0.00022835,2]
[370035959,1751854254256,-553.78,0.00022835,2]
[370035960,1751854254266,-460.0,0.00022835,2]
[370035961,1751854254275,-154.44747601,0.00022861,2]
[370035962,1751854254286,-2000.0,0.00023,2]
[370035963,1751854254296,-2000.0,0.00023,2]
[370035964,1751854254305,-968.6,0.00023,2]
[370035965,1751854254315,-160.0,0.00023,2]
[370035966,1751854254324,-1570.74,0.00023001,2]
[370035967,1751854254334,-460.0,0.00023001,2]
[370035968,1751854254343,-796.1,0.00023001,2]
[370035969,1751854254353,-918.24,0.00023002,2]
[370035970,1751854254363,-460.0,0.00023002,2]
[370035971,1751854254462,-555.41,0.00023002,2]
[370035972,1751854254473,-460.0,0.00023002,2]
[370035973,1751854254483,-460.0,0.0002301,2]
[370035974,1751854254493,-501.86266387,0.00023068,2]
[370035975,1751854254505,-1800.0,0.00023068,2]
[370035976,1751854254515,-151.0,0.000231,6]
[370035977,1751854254524,-723.06,0.00023107,2]
[370035978,1751854254534,-583.48,0.00023107,2]
[370035979,1751854254543,-726.04,0.00023109,2]
[370035980,1751854254553,-520.46,0.00023109,2]
[370035981,1751854254562,-751.74,0.00023109,2]
[370035982,1751854254573,-989.66,0.00023109,2]
[370035983,1751854254582,-462.52,0.00023109,2]
[370035984,1751854254591,-553.78,0.00023109,2]
[370035985,1751854254601,-460.0,0.00023109,2]
[370035986,1751854254611,-2000.0,0.000232,2]
[370035987,1751854254620,-207.4,0.0002322,2]
[370035988,1751854254629,-5000.0,0.0002322,2]
[370035989,1751854254639,-186.6881205,0.0002322,2]
[370035990,1751854254648,-1500.0,0.0002322,2]
[370035991,1751854254659,-1500.0,0.0002322,2]
[370035992,1751854254667,-1500.0,0.0002322,2]
[370035993,1751854254678,-1500.0,0.0002322,2]